bitfinex/quotes_BTCUSD_20241027
["timestamp","ask_amount","ask_price","bid_price","bid_amount"]
[1730003271957,0.41512332,67217.0,67216.0,0.001644]
[1730003272170,0.18436811,67217.0,67216.0,0.001644]
[1730003281003,0.18436525,67217.0,67216.0,0.001644]
[1730003284202,0.41518779,67217.0,67216.0,0.001644]
[1730003284418,0.18436525,67217.0,67216.0,0.001644]
[1730003284629,0.41518779,67217.0,67216.0,0.001644]
[1730003284860,0.1843663,67217.0,67216.0,0.001644]
[1730003285078,0.41519031,67217.0,67216.0,0.001644]
[1730003285324,0.1843663,67217.0,67216.0,0.001644]
[1730003285558,0.41519031,67217.0,67216.0,0.001644]
[1730003285777,0.1843663,67217.0,67216.0,0.001644]
[1730003286460,0.41519031,67217.0,67216.0,0.001644]
[1730003286686,0.1843663,67217.0,67216.0,0.001644]
[1730003286918,0.41519031,67217.0,67216.0,0.001644]
[1730003287172,0.1843663,67217.0,67216.0,0.001644]
[1730003289639,0.18436575,67217.0,67216.0,0.001644]
[1730003290484,0.41518899,67217.0,67216.0,0.001644]
[1730003290712,0.18436575,67217.0,67216.0,0.001644]
[1730003290951,0.41518899,67217.0,67209.0,0.297578]
[1730003291185,0.133999,67210.0,67209.0,0.446367]
[1730003291424,0.31835853,67210.0,67209.0,0.446367]
[1730003291863,0.18435953,67210.0,67209.0,0.446367]
[1730003292323,0.41518277,67210.0,67209.0,0.446367]
[1730003292999,0.31835796,67210.0,67209.0,0.446367]
[1730003293209,0.18435953,67210.0,67209.0,0.446367]
[1730003293839,0.41518277,67210.0,67209.0,0.446367]
[1730003294081,0.18435953,67210.0,67209.0,0.446367]
[1730003294401,0.18436685,67210.0,67209.0,0.446367]
[1730003295056,0.41520034,67210.0,67209.0,0.446367]
[1730003295263,0.18436685,67210.0,67209.0,0.446367]
[1730003296112,0.41520034,67210.0,67209.0,0.446367]
[1730003296322,0.18436685,67210.0,67209.0,0.446367]
[1730003297180,0.41520034,67210.0,67209.0,0.446367]
[1730003297397,0.18436685,67210.0,67209.0,0.446367]
[1730003298242,0.41520034,67210.0,67209.0,0.446367]
[1730003298446,0.18436685,67210.0,67209.0,0.446367]
[1730003299365,0.41520034,67210.0,67209.0,0.446367]
[1730003299575,0.18436685,67210.0,67209.0,0.446367]
[1730003300444,0.41520034,67210.0,67209.0,0.446367]
[1730003300868,0.18436685,67210.0,67209.0,0.446367]
[1730003301502,0.41520034,67210.0,67209.0,0.446367]
[1730003302182,0.18436685,67210.0,67209.0,0.446367]
[1730003302624,0.41520034,67210.0,67209.0,0.446367]
[1730003304104,0.41520034,67210.0,67209.0,0.448011]
[1730003305009,0.41521334,67210.0,67209.0,0.448011]
[1730003309314,0.18437227,67210.0,67209.0,0.448011]
[1730003309535,0.41521334,67210.0,67209.0,0.448011]
[1730003309760,0.18437227,67210.0,67209.0,0.448011]
[1730003310397,0.18437227,67210.0,67209.0,0.150433]
[1730003310636,0.41521334,67210.0,67209.0,0.150433]
[1730003311064,0.41524207,67210.0,67209.0,0.150433]
[1730003313466,0.41527604,67210.0,67209.0,0.150433]
[1730003318143,0.41527639,67210.0,67209.0,0.150433]
[1730003318987,0.54929991,67210.0,67209.0,0.150433]
[1730003319238,0.31842206,67210.0,67209.0,0.150433]
[1730003321130,0.41526764,67210.0,67209.0,0.150433]
[1730003337283,0.41526764,67210.0,67209.0,0.001644]
[1730003338339,0.41526764,67210.0,67209.0,0.150433]
[1730003338556,0.41526764,67210.0,67209.0,0.001644]
[1730003338994,0.41526764,67210.0,67209.0,0.150433]
[1730003340990,0.41520996,67210.0,67209.0,0.150433]
[1730003344044,0.41520108,67210.0,67209.0,0.150433]
[1730003347675,0.41519245,67210.0,67209.0,0.150433]
[1730003349619,0.4151897,67210.0,67209.0,0.150433]
[1730003364950,0.01948579,67210.0,67209.0,0.150433]
[1730003365164,0.39568251,67210.0,67209.0,0.150433]
[1730003365369,0.41516611,67210.0,67209.0,0.150433]
[1730003368657,0.41517256,67210.0,67209.0,0.150433]
[1730003373395,0.41517652,67210.0,67209.0,0.150433]
[1730003378152,0.41519781,67210.0,67209.0,0.150433]
[1730003382767,0.4152159,67210.0,67209.0,0.150433]
[1730003387376,0.0194836,67210.0,67209.0,0.150433]
[1730003387758,0.39574658,67210.0,67209.0,0.150433]
[1730003388179,0.41523059,67210.0,67209.0,0.150433]
[1730003392415,0.41523671,67210.0,67209.0,0.150433]
[1730003412415,0.01948401,67210.0,67209.0,0.150433]
[1730003412631,0.41525059,67210.0,67209.0,0.150433]
[1730003415498,0.43473506,67210.0,67209.0,0.150433]
[1730003416557,0.43473468,67210.0,67209.0,0.150433]
[1730003420094,0.61173468,67210.0,67209.0,0.001644]
[1730003420346,0.61173468,67210.0,67204.0,0.02328696]
[1730003420347,0.177,67209.0,67204.0,0.02328696]
[1730003420659,0.3258,67204.0,67203.0,0.001682]
[1730003421065,0.74104479,67204.0,67203.0,0.001682]
[1730003421308,0.148802,67203.0,67202.0,0.00079228]
[1730003421542,0.7137682,67203.0,67202.0,0.00079228]
[1730003421950,0.73324045,67203.0,67202.0,0.00079228]
[1730003423949,0.73254008,67203.0,67202.0,0.00079228]
[1730003425330,0.48797806,67203.0,67202.0,0.00079228]
[1730003425559,0.49297806,67203.0,67202.0,0.00079228]
[1730003426246,0.8879042,67203.0,67202.0,0.00079228]
[1730003426671,0.49297806,67203.0,67202.0,0.00079228]
[1730003427132,0.50297806,67203.0,67202.0,0.00079228]
[1730003428270,0.51451672,67203.0,67202.0,0.00079228]
[1730003428695,0.51651672,67203.0,67202.0,0.00079228]
[1730003430063,0.51451672,67203.0,67202.0,0.00079228]
[1730003431090,0.1742,67198.0,67187.0,0.22240179]
[1730003431305,0.24096608,67196.0,67195.0,0.22240179]
[1730003431506,0.239428,67192.0,67187.0,0.22240179]
[1730003431702,0.0786,67190.0,67187.0,0.22240179]
[1730003431936,0.1644629,67189.0,67187.0,0.22240179]
[1730003432151,0.1644629,67188.0,67184.0,0.148844]
[1730003432359,0.11133742,67186.0,67184.0,0.148844]
[1730003432565,0.1644629,67187.0,67184.0,0.148844]
[1730003432566,0.25350598,67185.0,67184.0,0.148844]
[1730003432764,0.10847995,67185.0,67184.0,0.148844]
[1730003433039,0.27294285,67185.0,67184.0,0.148844]
[1730003433208,0.27294285,67185.0,67184.0,0.317844]
[1730003433422,0.06395449,67185.0,67184.0,0.317844]
[1730003433580,0.01943687,67185.0,67184.0,0.317844]
[1730003434020,0.04451762,67187.0,67184.0,0.169]
[1730003434161,0.04451762,67187.0,67186.0,0.14884]
[1730003435682,0.01943871,67187.0,67186.0,0.14278]
[1730003438097,0.04448695,67188.0,67187.0,0.148838]
[1730003438471,0.04448695,67189.0,67186.0,0.30368]
[1730003438651,0.04448695,67189.0,67188.0,0.24668105]
[1730003439917,0.04448695,67189.0,67188.0,0.148836]
[1730003441277,0.0889739,67191.0,67189.0,0.148833]
[1730003441681,0.25314818,67191.0,67189.0,0.148833]
[1730003441927,0.0889739,67191.0,67189.0,0.148833]
[1730003442766,0.06670342,67190.0,67189.0,0.148833]
[1730003443164,0.06670342,67190.0,67187.0,0.148837]
[1730003443383,0.066704,67189.0,67188.0,0.148834]
[1730003444143,0.066704,67189.0,67188.0,0.149656]
[1730003445415,0.066704,67190.0,67188.0,0.149656]
[1730003445824,0.066704,67190.0,67188.0,0.000822]
[1730003446027,0.166004,67190.0,67188.0,0.000822]
[1730003446238,0.25311375,67189.0,67188.0,0.000822]
[1730003446472,0.27535722,67189.0,67188.0,0.000822]
[1730003446817,0.31297013,67189.0,67188.0,0.000822]
[1730003447023,0.16413713,67189.0,67188.0,0.000822]
[1730003447714,0.2752909,67189.0,67188.0,0.000822]
[1730003448348,0.4241239,67189.0,67188.0,0.000822]
[1730003448553,0.31297013,67189.0,67188.0,0.000822]
[1730003448760,0.41081518,67189.0,67188.0,0.000822]
[1730003449181,0.31297013,67189.0,67188.0,0.000822]
[1730003449841,0.16413713,67189.0,67188.0,0.000822]
[1730003450265,0.31297013,67189.0,67188.0,0.000822]
[1730003450501,0.16413713,67189.0,67188.0,0.000822]
[1730003450721,0.18357265,67189.0,67188.0,0.000822]
[1730003451462,0.33240565,67189.0,67188.0,0.000822]
[1730003452291,0.18357265,67189.0,67188.0,0.000822]
[1730003453548,0.33240565,67189.0,67188.0,0.000822]
[1730003454679,0.18357265,67189.0,67188.0,0.000822]
[1730003456170,0.18357424,67189.0,67188.0,0.000822]
[1730003456412,0.18521824,67189.0,67188.0,0.000822]
[1730003456846,0.29639247,67189.0,67188.0,0.000822]
[1730003458383,0.29639247,67189.0,67185.0,0.14486492]
[1730003458590,0.08895259,67186.0,67185.0,0.14486492]
[1730003459022,0.10838548,67186.0,67185.0,0.14486492]
[1730003459265,0.2725242,67186.0,67185.0,0.14486492]
[1730003460776,0.18357161,67186.0,67185.0,0.14486492]
[1730003461659,0.29474584,67186.0,67185.0,0.14486492]
[1730003462785,0.18357161,67186.0,67185.0,0.14486492]
[1730003464797,0.18397693,67186.0,67185.0,0.14486492]
[1730003465240,0.18397693,67186.0,67185.0,0.23736492]
[1730003465682,0.16454404,67186.0,67185.0,0.23736492]
[1730003465893,0.18397528,67186.0,67185.0,0.23736492]
[1730003468886,0.31769996,67186.0,67185.0,0.23818692]
[1730003469718,0.31769996,67186.0,67185.0,0.14568692]
[1730003471482,0.18397528,67186.0,67185.0,0.14568692]
[1730003471896,0.31787377,67186.0,67185.0,0.14568692]
[1730003472951,0.31787377,67186.0,67185.0,0.24353197]
[1730003473367,0.31808627,67186.0,67185.0,0.24353197]
[1730003477960,0.318097,67186.0,67185.0,0.24353197]
[1730003480041,0.318097,67186.0,67185.0,0.14568692]
[1730003480769,0.18419431,67186.0,67185.0,0.14568692]
[1730003481003,0.31810188,67186.0,67185.0,0.33503197]
[1730003481753,0.31974588,67186.0,67185.0,0.33503197]
[1730003482656,0.31976618,67186.0,67185.0,0.23718692]
[1730003483787,0.1858522,67186.0,67185.0,0.23718692]
[1730003484916,0.41653995,67186.0,67185.0,0.23718692]
[1730003485143,0.1858522,67186.0,67185.0,0.23718692]
[1730003485611,0.41653995,67186.0,67185.0,0.23718692]
[1730003485826,0.1858522,67186.0,67185.0,0.23718692]
[1730003486293,0.41653995,67186.0,67185.0,0.23718692]
[1730003486509,0.1858522,67186.0,67185.0,0.23718692]
[1730003486999,0.41653995,67186.0,67185.0,0.23718692]
[1730003487210,0.1858522,67186.0,67185.0,0.23718692]
[1730003487663,0.41653995,67186.0,67185.0,0.23718692]
[1730003487888,0.1858522,67186.0,67185.0,0.23718692]
[1730003488308,0.41653995,67186.0,67185.0,0.23718692]
[1730003488517,0.1858522,67186.0,67185.0,0.23718692]
[1730003488934,0.41653995,67186.0,67185.0,0.23718692]
[1730003489150,0.1858522,67186.0,67185.0,0.23718692]
[1730003489821,0.41660432,67186.0,67185.0,0.23718692]
[1730003490030,0.18587902,67186.0,67185.0,0.23718692]
[1730003490466,0.41660432,67186.0,67185.0,0.23718692]
[1730003490688,0.18587902,67186.0,67185.0,0.23718692]
[1730003491133,0.41660432,67186.0,67185.0,0.23718692]
[1730003491359,0.18587902,67186.0,67185.0,0.23718692]
[1730003491810,0.41660432,67186.0,67185.0,0.23718692]
[1730003492052,0.18587902,67186.0,67185.0,0.23718692]
[1730003492493,0.41660432,67186.0,67185.0,0.23718692]
[1730003492711,0.18587902,67186.0,67185.0,0.23718692]
[1730003493141,0.41660432,67186.0,67185.0,0.23718692]
[1730003493353,0.18587902,67186.0,67185.0,0.23718692]
[1730003493788,0.41660432,67186.0,67185.0,0.23718692]
[1730003494013,0.18587902,67186.0,67185.0,0.23718692]
[1730003494481,0.41660432,67186.0,67185.0,0.23718692]
[1730003494700,0.18587902,67186.0,67185.0,0.14568692]
[1730003495154,0.41660432,67186.0,67185.0,0.14568692]
[1730003495394,0.18587902,67186.0,67185.0,0.14568692]
[1730003495615,0.41660432,67186.0,67185.0,0.14568692]
[1730003496942,0.41665438,67186.0,67185.0,0.14568692]
[1730003501659,0.41675585,67186.0,67185.0,0.14568692]
[1730003503704,0.41675585,67186.0,67185.0,0.24353197]
[1730003507120,0.41675585,67186.0,67185.0,0.39403578]
[1730003507350,0.41675585,67186.0,67185.0,0.66423578]
[1730003507351,0.18594216,67186.0,67185.0,0.66423578]
[1730003507803,0.16651092,67186.0,67185.0,0.66423578]
[1730003510627,0.27813212,67186.0,67185.0,0.66423578]
[1730003510877,0.29751428,67186.0,67185.0,0.66423578]
[1730003511108,0.29751428,67186.0,67185.0,0.66923578]
[1730003512589,0.18589308,67186.0,67185.0,0.66923578]
[1730003514139,0.16645968,67186.0,67185.0,0.66923578]
[1730003514583,0.16645968,67186.0,67185.0,0.39619073]
[1730003515521,0.16640487,67186.0,67185.0,0.39619073]
[1730003516148,0.2556667,67186.0,67185.0,0.39619073]
[1730003516574,0.27510031,67186.0,67185.0,0.39619073]
[1730003520341,0.27510031,67186.0,67185.0,0.49403578]
[1730003523421,0.27503112,67186.0,67185.0,0.49403578]
[1730003526351,0.18579008,67186.0,67185.0,0.49403578]
[1730003526562,0.27503112,67186.0,67185.0,0.49403578]
[1730003526779,0.29734138,67186.0,67185.0,0.49403578]
[1730003527012,0.18579008,67186.0,67185.0,0.49403578]
[1730003527630,0.35599008,67186.0,67185.0,0.24568692]
[1730003530107,0.27729008,67186.0,67185.0,0.24568692]
[1730003530321,0.18579008,67186.0,67185.0,0.24568692]
[1730003530768,0.18579008,67186.0,67185.0,0.39619073]
[1730003531203,0.25559804,67186.0,67185.0,0.49439073]
[1730003531655,0.27502911,67186.0,67185.0,0.49439073]
[1730003533575,0.08800591,67186.0,67185.0,0.49439073]
[1730003533783,0.02107507,67186.0,67185.0,0.49439073]
[1730003534031,0.06857411,67186.0,67185.0,0.49439073]
[1730003535408,0.06857325,67186.0,67185.0,0.49439073]
[1730003535853,0.001644,67186.0,67185.0,0.49439073]
[1730003536082,0.06857345,67186.0,67185.0,0.49439073]
[1730003537390,0.06857279,67186.0,67185.0,0.49439073]
[1730003543336,0.06857279,67186.0,67185.0,0.39619073]
[1730003543539,0.001644,67186.0,67185.0,0.39619073]
[1730003543767,0.16636931,67186.0,67185.0,0.39619073]
[1730003543975,0.02107421,67186.0,67185.0,0.39619073]
[1730003544404,0.001644,67186.0,67185.0,0.39619073]
[1730003544616,0.16635279,67186.0,67185.0,0.39619073]
[1730003545050,0.18578716,67186.0,67185.0,0.39619073]
[1730003546370,0.18578716,67186.0,67185.0,0.40119073]
[1730003546801,0.18578716,67186.0,67185.0,0.49699073]
[1730003548792,0.27502555,67186.0,67185.0,0.49699073]
[1730003549437,0.27502555,67186.0,67185.0,0.58609073]
[1730003549649,0.08802742,67186.0,67185.0,0.58609073]
[1730003549868,0.001644,67186.0,67185.0,0.58609073]
[1730003551181,0.001644,67186.0,67185.0,0.60909073]
[1730003555232,0.00072093,67186.0,67185.0,0.60909073]
[1730003560568,0.00072093,67186.0,67185.0,0.61109073]
[1730003560987,0.00072093,67186.0,67185.0,0.60909073]
[1730003564029,0.00072093,67186.0,67185.0,0.61109073]
[1730003564238,0.00072093,67186.0,67185.0,0.60909073]
[1730003576056,0.00072093,67186.0,67185.0,0.80478083]
[1730003579636,0.00072093,67186.0,67185.0,0.62988083]
[1730003582078,0.00072093,67186.0,67185.0,0.53203578]
[1730003582522,0.00072093,67186.0,67185.0,0.43419073]
[1730003582740,0.00072093,67186.0,67185.0,0.41119073]
[1730003582947,0.00072093,67186.0,67185.0,0.50903578]
[1730003584310,0.09122093,67186.0,67185.0,0.50903578]
[1730003584775,0.1106703,67186.0,67185.0,0.50903578]
[1730003585435,0.09122093,67186.0,67185.0,0.50903578]
[1730003585873,0.1106703,67186.0,67185.0,0.50903578]
[1730003587874,0.15525831,67186.0,67185.0,0.49403578]
[1730003589999,0.15525831,67186.0,67185.0,0.49903578]
[1730003590673,0.1106703,67186.0,67185.0,0.49903578]
[1730003591332,0.15526862,67186.0,67185.0,0.49903578]
[1730003593024,0.1106703,67186.0,67185.0,0.49903578]
[1730003593366,0.1552712,67186.0,67185.0,0.49903578]
[1730003595154,0.1106703,67186.0,67185.0,0.49903578]
[1730003596037,0.1106703,67186.0,67185.0,0.40119073]
[1730003596253,0.1106703,67186.0,67185.0,0.49903578]
[1730003597512,0.15527124,67186.0,67185.0,0.49903578]
[1730003597735,0.1106703,67186.0,67185.0,0.49903578]
[1730003606830,0.09122093,67186.0,67185.0,0.49903578]
[1730003607498,0.11066065,67186.0,67185.0,0.49903578]
[1730003607739,0.09122093,67186.0,67185.0,0.49903578]
[1730003608213,0.09122093,67186.0,67185.0,0.39619073]
[1730003608412,0.09122093,67186.0,67185.0,0.49403578]
[1730003608413,0.13580885,67186.0,67185.0,0.49403578]
[1730003608632,0.11066065,67186.0,67185.0,0.49403578]
[1730003608857,0.15524857,67186.0,67185.0,0.49403578]
[1730003609084,0.18746065,67186.0,67185.0,0.39619073]
[1730003609334,0.18746065,67186.0,67185.0,0.24568692]
[1730003609574,0.44120499,67186.0,67185.0,0.14568692]
[1730003610941,0.44114993,67186.0,67185.0,0.24568692]
[1730003611380,0.46343698,67186.0,67185.0,0.24568692]
[1730003611845,0.35200174,67186.0,67185.0,0.24568692]
[1730003613538,0.46339499,67186.0,67185.0,0.24568692]
[1730003613750,0.35200174,67186.0,67185.0,0.24568692]
[1730003615329,0.35200174,67186.0,67185.0,0.14568692]
[1730003615544,0.35192138,67186.0,67185.0,0.14568692]
[1730003616797,0.46328688,67186.0,67185.0,0.14568692]
[1730003617209,0.35192138,67186.0,67185.0,0.14568692]
[1730003617431,0.46328688,67186.0,67185.0,0.14568692]
[1730003618663,0.35192138,67186.0,67185.0,0.14568692]
[1730003619185,0.46327754,67186.0,67185.0,0.14568692]
[1730003620168,0.46324333,67186.0,67185.0,0.14568692]
[1730003620403,0.35188629,67186.0,67185.0,0.14568692]
[1730003620571,0.46324953,67186.0,67185.0,0.14568692]
[1730003622173,0.35188629,67186.0,67185.0,0.14568692]
[1730003622592,0.46324953,67186.0,67185.0,0.14568692]
[1730003622794,0.35188629,67186.0,67185.0,0.14568692]
[1730003623173,0.46324953,67186.0,67185.0,0.14568692]
[1730003623573,0.35188629,67186.0,67185.0,0.14568692]
[1730003629632,0.35196965,67186.0,67185.0,0.14568692]
[1730003642194,0.35199065,67186.0,67185.0,0.14568692]
[1730003646016,0.27519065,67186.0,67185.0,0.14568692]
[1730003646939,0.27523927,67186.0,67185.0,0.14568692]
[1730003650860,0.40899205,67186.0,67185.0,0.14568692]
[1730003651675,0.27534021,67186.0,67185.0,0.14568692]
[1730003652114,0.35564021,67186.0,67185.0,0.14568692]
[1730003652354,0.48947592,67186.0,67185.0,0.14568692]
[1730003652558,0.58619159,67186.0,67185.0,0.14568692]
[1730003652770,0.35564021,67186.0,67185.0,0.14568692]
[1730003653196,0.58627029,67186.0,67185.0,0.14568692]
[1730003656402,0.58647655,67186.0,67185.0,0.14568692]
[1730003662208,0.58647655,67186.0,67185.0,0.000822]
[1730003662452,0.58647655,67186.0,67185.0,0.149664]
[1730003662667,0.58647655,67186.0,67185.0,0.000822]
[1730003663299,0.58647655,67186.0,67185.0,0.149664]
[1730003665866,0.5864479,67186.0,67185.0,0.149664]
[1730003671296,0.19096065,67186.0,67185.0,0.149664]
[1730003671731,0.17152093,67186.0,67185.0,0.149664]
[1730003673174,0.56694085,67186.0,67185.0,0.149664]
[1730003673378,0.58637213,67186.0,67185.0,0.149664]
[1730003673787,0.42161383,67186.0,67185.0,0.149664]
[1730003673996,0.19095221,67186.0,67185.0,0.149664]
[1730003674411,0.17152093,67186.0,67185.0,0.149664]
[1730003676712,0.00072093,67186.0,67185.0,0.149664]
[1730003683392,0.16547941,67186.0,67185.0,0.149664]
[1730003683611,0.18491243,67186.0,67185.0,0.149664]
[1730003683834,0.02015395,67186.0,67185.0,0.149664]
[1730003684281,0.00072093,67186.0,67185.0,0.149664]
[1730003686490,0.00072093,67186.0,67185.0,0.24750905]
[1730003688286,0.16545112,67186.0,67185.0,0.24750905]
[1730003688750,0.18488414,67186.0,67185.0,0.149664]
[1730003689234,0.31876011,67186.0,67185.0,0.149664]
[1730003689475,0.31875299,67186.0,67185.0,0.149664]
[1730003693479,0.31875226,67186.0,67185.0,0.149664]
[1730003694433,0.18487981,67186.0,67185.0,0.149664]
[1730003695592,0.18487981,67186.0,67185.0,0.24750905]
[1730003706170,0.31876385,67186.0,67185.0,0.24750905]
[1730003706613,0.18488621,67186.0,67185.0,0.24750905]
[1730003707508,0.31876385,67186.0,67185.0,0.24750905]
[1730003708350,0.18488621,67186.0,67185.0,0.24750905]
[1730003708561,0.31876385,67186.0,67185.0,0.24750905]
[1730003708989,0.18488621,67186.0,67185.0,0.24750905]
[1730003709417,0.31876385,67186.0,67185.0,0.24750905]
[1730003710932,0.31879409,67186.0,67185.0,0.24750905]
[1730003714616,0.54944261,67186.0,67185.0,0.24750905]
[1730003714799,0.31879409,67186.0,67185.0,0.24750905]
[1730003715237,0.18490289,67186.0,67185.0,0.24750905]
[1730003715442,0.31879409,67186.0,67185.0,0.24750905]
[1730003715692,0.31889296,67186.0,67185.0,0.24750905]
[1730003717212,0.18495743,67186.0,67185.0,0.24750905]
[1730003720446,0.18486669,67186.0,67185.0,0.24750905]
[1730003722721,0.18486669,67186.0,67185.0,0.149664]
[1730003722943,0.18486669,67186.0,67185.0,0.325164]
[1730003729900,0.18481909,67186.0,67185.0,0.325164]
[1730003732012,0.18481909,67186.0,67185.0,0.149664]
[1730003734604,0.18481391,67186.0,67185.0,0.149664]
[1730003739371,0.02015395,67186.0,67185.0,0.149664]
[1730003739911,0.00072093,67186.0,67185.0,0.149664]
[1730003741586,0.00072093,67186.0,67185.0,0.24750905]
[1730003748620,0.00072093,67186.0,67185.0,0.149664]
[1730003748830,0.00072093,67186.0,67185.0,0.24750905]
[1730003763615,0.00072093,67186.0,67185.0,0.149664]
[1730003763801,0.00072093,67186.0,67185.0,0.24750905]
[1730003765037,0.16537334,67186.0,67185.0,0.24750905]
[1730003765383,0.18914644,67186.0,67185.0,0.24750905]
[1730003766239,0.18915256,67186.0,67185.0,0.24750905]
[1730003767625,0.02449403,67186.0,67185.0,0.24750905]
[1730003767845,0.02449403,67186.0,67185.0,0.149664]
[1730003768052,0.17422093,67186.0,67185.0,0.149664]
[1730003768481,0.33893813,67186.0,67185.0,0.149664]
[1730003768899,0.35911909,67186.0,67185.0,0.149664]
[1730003771250,0.35911833,67186.0,67185.0,0.149664]
[1730003775821,0.35911833,67186.0,67185.0,0.249664]
[1730003778325,0.58972135,67186.0,67185.0,0.249664]
[1730003778561,0.35911833,67186.0,67185.0,0.249664]
[1730003779004,0.58972135,67186.0,67185.0,0.249664]
[1730003779229,0.35911833,67186.0,67185.0,0.249664]
[1730003779675,0.49298435,67186.0,67185.0,0.249664]
[1730003780835,0.4930189,67186.0,67185.0,0.249664]
[1730003781060,0.35913807,67186.0,67185.0,0.249664]
[1730003782628,0.49300049,67186.0,67185.0,0.249664]
[1730003783510,0.35913807,67186.0,67185.0,0.249664]
[1730003783738,0.49300049,67186.0,67185.0,0.249664]
[1730003784173,0.35913807,67186.0,67185.0,0.249664]
[1730003784391,0.49300366,67186.0,67185.0,0.249664]
[1730003784863,0.35913807,67186.0,67185.0,0.249664]
[1730003785525,0.49297315,67186.0,67185.0,0.249664]
[1730003786647,0.35911283,67186.0,67185.0,0.249664]
[1730003786867,0.49297315,67186.0,67185.0,0.249664]
[1730003787344,0.35911283,67186.0,67185.0,0.149664]
[1730003788033,0.58970815,67186.0,67185.0,0.149664]
[1730003788741,0.35911283,67186.0,67185.0,0.149664]
[1730003789178,0.58970815,67186.0,67185.0,0.149664]
[1730003789397,0.35911283,67186.0,67185.0,0.149664]
[1730003792358,0.35903501,67186.0,67185.0,0.149664]
[1730003794761,0.35901471,67186.0,67185.0,0.149664]
[1730003795607,0.49279327,67186.0,67185.0,0.149664]
[1730003796120,0.35901471,67186.0,67185.0,0.149664]
[1730003798708,0.49278941,67186.0,67185.0,0.149664]
[1730003798925,0.35901471,67186.0,67185.0,0.149664]
[1730003799540,0.35900574,67186.0,67185.0,0.149664]
[1730003800419,0.35900574,67186.0,67185.0,0.000822]
[1730003800636,0.35900574,67186.0,67185.0,0.149664]
[1730003800855,0.35900574,67186.0,67183.0,0.299374]
[1730003801084,0.19440189,67186.0,67185.0,0.148842]
[1730003801293,0.35899345,67186.0,67185.0,0.148842]
[1730003803050,0.35899345,67186.0,67183.0,0.299374]
[1730003803252,0.35899345,67186.0,67185.0,0.148842]
[1730003803253,0.19440189,67186.0,67185.0,0.148842]
[1730003803467,0.35898532,67186.0,67185.0,0.148842]
[1730003804370,0.35898278,67186.0,67185.0,0.148842]
[1730003804582,0.35898278,67186.0,67183.0,0.299374]
[1730003804790,0.19440189,67186.0,67185.0,0.148842]
[1730003804991,0.35896382,67186.0,67185.0,0.148842]
[1730003805196,0.35896382,67186.0,67184.0,0.297689]
[1730003805401,0.16455258,67185.0,67184.0,0.148844]
[1730003805808,0.18487623,67185.0,67184.0,0.148844]
[1730003808151,0.18486615,67185.0,67184.0,0.148844]
[1730003809269,0.0927,67184.0,67183.0,0.001682]
[1730003809477,0.2572425,67184.0,67183.0,0.001682]
[1730003809691,0.27756547,67184.0,67183.0,0.001682]
[1730003812117,0.27756547,67184.0,67183.0,0.150529]
[1730003813633,0.27755674,67184.0,67183.0,0.150529]
[1730003814689,0.18485674,67184.0,67183.0,0.150529]
[1730003815111,0.3185779,67184.0,67183.0,0.150529]
[1730003816466,0.18485674,67184.0,67183.0,0.150529]
[1730003818630,0.18485674,67184.0,67183.0,0.001682]
[1730003818848,0.18485674,67184.0,67183.0,0.150529]
[1730003820801,0.18485674,67184.0,67180.0,0.297704]
[1730003820802,0.18485674,67184.0,67181.0,0.297703]
[1730003821029,0.02032297,67184.0,67183.0,0.148847]
[1730003821243,0.18487656,67184.0,67183.0,0.148847]
[1730003821463,0.18487656,67184.0,67183.0,0.149669]
[1730003825441,0.18487656,67184.0,67183.0,0.000822]
[1730003825651,0.18487656,67184.0,67183.0,0.149669]
[1730003826086,0.18487656,67184.0,67183.0,0.000822]
[1730003826512,0.18491605,67184.0,67183.0,0.000822]
[1730003826730,0.18491605,67184.0,67183.0,0.149669]
[1730003827420,0.18491605,67184.0,67183.0,0.000822]
[1730003828092,0.19885822,67184.0,67183.0,0.000822]
[1730003829461,0.37325822,67184.0,67183.0,0.000822]
[1730003830152,0.37325903,67184.0,67183.0,0.000822]
[1730003830650,0.77545189,67184.0,67183.0,0.000822]
[1730003830866,1.0058822,67184.0,67183.0,0.000822]
[1730003831750,1.00587751,67184.0,67183.0,0.000822]
[1730003831965,1.00787751,67184.0,67183.0,0.000822]
[1730003832416,1.01587751,67184.0,67183.0,0.000822]
[1730003833560,1.01752151,67184.0,67183.0,0.000822]
[1730003834200,1.01952151,67184.0,67183.0,0.000822]
[1730003834411,1.01752151,67184.0,67183.0,0.000822]
[1730003835167,1.01751102,67184.0,67183.0,0.000822]
[1730003835386,0.91966597,67184.0,67183.0,0.000822]
[1730003835784,0.148851,67182.0,67175.0,0.001684]
[1730003836025,0.13367331,67176.0,67175.0,0.001684]
[1730003836242,0.17852088,67176.0,67175.0,0.001684]
[1730003836463,0.19882597,67176.0,67175.0,0.001684]
[1730003836686,0.33249023,67176.0,67175.0,0.001684]
[1730003838860,0.33248501,67176.0,67175.0,0.001684]
[1730003840380,0.3322988,67176.0,67175.0,0.001684]
[1730003842392,0.18474013,67176.0,67175.0,0.001684]
[1730003842636,0.19866007,67176.0,67175.0,0.001684]
[1730003845102,0.19864363,67176.0,67175.0,0.001684]
[1730003846221,0.19864316,67176.0,67175.0,0.001684]
[1730003849836,0.18472369,67176.0,67175.0,0.001684]
[1730003850067,0.19864366,67176.0,67175.0,0.001684]
[1730003850912,0.19864366,67176.0,67171.0,0.150556]
[1730003851124,0.31194285,67175.0,67171.0,0.150556]
[1730003851332,0.17833857,67174.0,67172.0,0.148871]
[1730003851541,0.17833857,67173.0,67171.0,0.001684]
[1730003851753,0.17833857,67172.0,67171.0,0.001684]
[1730003851965,0.19863899,67172.0,67171.0,0.001684]
[1730003852622,0.19863899,67172.0,67171.0,0.150555]
[1730003853716,0.19864027,67172.0,67171.0,0.001684]
[1730003853894,0.19864027,67172.0,67171.0,0.150557]
[1730003854602,0.19862008,67172.0,67171.0,0.150557]
[1730003854805,0.19862008,67172.0,67171.0,0.001684]
[1730003855020,0.19862008,67172.0,67171.0,0.150557]
[1730003855254,0.19862008,67172.0,67171.0,0.001684]
[1730003855677,0.19862008,67172.0,67171.0,0.150557]
[1730003855807,0.19862008,67172.0,67171.0,0.144567]
[1730003856641,0.19862008,67172.0,67167.0,0.1]
[1730003856842,0.11133681,67169.0,67168.0,0.24728]
[1730003857062,0.28965647,67169.0,67168.0,0.24728]
[1730003857274,0.30995576,67169.0,67168.0,0.24728]
[1730003858332,0.30995576,67169.0,67168.0,0.25327]
[1730003859189,0.19861845,67169.0,67168.0,0.25327]
[1730003860884,0.1986324,67169.0,67168.0,0.25327]
[1730003861534,0.30997066,67169.0,67168.0,0.25327]
[1730003861746,0.1986324,67169.0,67168.0,0.25327]